fUSD/lending_fUSD_20250618
["ID","MTS","AMOUNT","RATE_DAILY","PERIOD"]
[366403570,1750234238282,-1072.7340155,0.000164,2]
[366403571,1750234238294,-3206.65230829,0.000164,2]
[366403572,1750234238332,-884.36224711,0.000164,2]
[366403574,1750234238625,-17700.0,0.000164,2]
[366403575,1750234238637,-809.43248953,0.000164,2]
[366403576,1750234238649,-10290.0,0.000164,2]
[366403577,1750234238706,-9413.25086754,0.000164,2]
[366403578,1750234238716,-566.19,0.00016426,3]
[366403579,1750234238727,-153.85,0.00016428,2]
[366403580,1750234238737,-153.85,0.00016428,2]
[366403581,1750234238748,-153.85,0.00016428,2]
[366403582,1750234238758,-153.85,0.00016428,2]
[366403583,1750234238769,-150.0,0.00016431,2]
[366403584,1750234238779,-22750.49792881,0.00016437,2]
[366403585,1750234238790,-171.82,0.00016437,2]
[366403586,1750234238800,-500.0,0.00016437,2]
[366403587,1750234238810,-191.56062893,0.00016437,2]
[366403588,1750234238820,-189.68566185,0.00016437,2]
[366403589,1750234238830,-500.0,0.00016437,2]
[366403590,1750234238840,-170.2301797,0.00016437,2]
[366403591,1750234238850,-500.0,0.00016437,2]
[366403592,1750234238860,-629.87215636,0.00016437,2]
[366403593,1750234238870,-374.33145533,0.00016437,2]
[366403594,1750234238881,-500.0,0.00016437,2]
[366403595,1750234238891,-376.41568255,0.00016437,2]
[366403596,1750234238901,-500.0,0.00016437,2]
[366403597,1750234238910,-571.27180581,0.00016437,2]
[366403598,1750234238920,-500.0,0.00016437,2]
[366403599,1750234238930,-500.0,0.00016437,2]
[366403600,1750234238940,-500.0,0.00016437,2]
[366403601,1750234238950,-326.99018462,0.00016437,2]
[366403602,1750234238959,-457.33070853,0.00016437,2]
[366403603,1750234238970,-688778.97551886,0.00016438,2]
[366403604,1750234238980,-152.357431,0.00016438,2]
[366403605,1750234238990,-490.0,0.00016438,2]
[366403606,1750234239000,-151.0,0.00016438,2]
[366403607,1750234239010,-151.96296,0.00016438,2]
[366403608,1750234239020,-151.0,0.00016438,2]
[366403609,1750234239030,-249.136401,0.00016438,2]
[366403610,1750234239039,-217.22882888,0.00016438,2]
[366403612,1750234239049,-491.93237683,0.00016438,2]
[366403614,1750234239059,-161.184063,0.00016438,2]
[366403616,1750234239068,-151.725734,0.00016438,2]
[366403618,1750234239078,-490.0,0.00016438,2]
[366403620,1750234239088,-490.98754556,0.00016438,2]
[366403622,1750234239098,-490.0,0.00016438,2]
[366403624,1750234239107,-151.0,0.00016438,2]
[366403634,1750234239117,-499.8895779,0.00016438,2]
[366403636,1750234239207,-490.0,0.00016438,2]
[366403638,1750234239217,-598.39180728,0.00016438,2]
[366403640,1750234239227,-151.0,0.00016438,2]
[366403642,1750234239236,-491.084431,0.00016438,2]
[366403644,1750234239246,-151.0,0.00016438,2]
[366403646,1750234239255,-2567.760265,0.00016438,2]
[366403648,1750234239264,-151.320699,0.00016438,2]
[366403650,1750234239274,-490.0,0.00016438,2]
[366403652,1750234239283,-151.0,0.00016438,2]
[366403654,1750234239293,-151.0,0.00016438,2]
[366403656,1750234239302,-490.0,0.00016438,2]
[366403658,1750234239311,-490.0,0.00016438,2]
[366403660,1750234239321,-151.0,0.00016438,2]
[366403662,1750234239330,-495.31079342,0.00016438,2]
[366403664,1750234239339,-490.0,0.00016438,2]
[366403666,1750234239349,-490.0,0.00016438,2]
[366403668,1750234239358,-490.0,0.00016438,2]
[366403670,1750234239368,-490.0,0.00016438,2]
[366403672,1750234239377,-151.0,0.00016438,2]
[366403674,1750234239387,-490.0,0.00016438,2]
[366403676,1750234239396,-490.0,0.00016438,2]
[366403678,1750234239405,-490.0,0.00016438,2]
[366403680,1750234239415,-340.59198904,0.00016438,2]
[366403682,1750234239425,-490.0,0.00016438,2]
[366403684,1750234239434,-761.39,0.00016438,2]
[366403686,1750234239443,-490.0,0.00016438,2]
[366403688,1750234239452,-275.538435,0.00016438,2]
[366403690,1750234239462,-151.0,0.00016438,2]
[366403692,1750234239472,-875.74,0.00016438,2]
[366403694,1750234239481,-1280.16,0.00016438,2]
[366403696,1750234239490,-269.243746,0.00016438,2]
[366403698,1750234239500,-490.0,0.00016438,2]
[366403700,1750234239510,-490.0,0.00016438,2]
[366403702,1750234239520,-152.831097,0.00016438,2]
[366403704,1750234239530,-493.67045002,0.00016438,2]
[366403706,1750234239539,-151.0,0.00016438,2]
[366403708,1750234239549,-490.0,0.00016438,2]
[366403710,1750234239559,-151.0,0.00016438,2]
[366403712,1750234239569,-490.0,0.00016438,2]
[366403714,1750234239580,-490.0,0.00016438,2]
[366403716,1750234239589,-1063.25,0.00016438,2]
[366403718,1750234239599,-492.00723609,0.00016438,2]
[366403720,1750234239608,-304.10324989,0.00016438,2]
[366403722,1750234239617,-490.0,0.00016438,2]
[366403724,1750234239627,-490.0,0.00016438,2]
[366403726,1750234239637,-898.99,0.00016438,2]
[366403728,1750234239646,-406.90098518,0.00016438,2]
[366403730,1750234239656,-490.0,0.00016438,2]
[366403732,1750234239665,-490.0,0.00016438,2]
[366403734,1750234239676,-5000.0,0.00016438,2]
[366403736,1750234239696,-151.0,0.00016438,2]
[366403738,1750234239705,-490.0,0.00016438,2]
[366403740,1750234239715,-151.520417,0.00016438,2]
[366403742,1750234239725,-490.0,0.00016438,2]
[366403744,1750234239735,-490.0,0.00016438,2]
[366403746,1750234239745,-439.16760867,0.00016438,2]
[366403748,1750234239755,-150.617492,0.00016438,2]
[366403750,1750234239765,-490.0,0.00016438,2]
[366403752,1750234239775,-490.0,0.00016438,2]
[366403755,1750234239786,-490.0,0.00016438,2]
[366403757,1750234239795,-490.0,0.00016438,2]
[366403759,1750234239805,-490.0,0.00016438,2]
[366403760,1750234239815,-151.0,0.00016438,2]
[366403762,1750234239824,-490.0,0.00016438,2]
[366403764,1750234239834,-583.97,0.00016438,2]
[366403767,1750234239844,-481.24287783,0.00016438,2]
[366403769,1750234239853,-490.0,0.00016438,2]
[366403770,1750234239862,-1305.54,0.00016438,2]
[366403772,1750234239873,-781.49,0.00016438,2]
[366403774,1750234239882,-490.0,0.00016438,2]
[366403777,1750234239892,-401.63317085,0.00016438,2]
[366403779,1750234239902,-151.0,0.00016438,2]
[366403780,1750234239911,-151.0,0.00016438,2]
[366403782,1750234239921,-490.0,0.00016438,2]
[366403785,1750234239930,-151.728297,0.00016438,2]
[366403786,1750234239940,-434.20619035,0.00016438,2]
[366403788,1750234239949,-493.5353936,0.00016438,2]
[366403790,1750234239959,-782.65,0.00016438,2]
[366403792,1750234239968,-561.73,0.00016438,2]
[366403794,1750234239978,-151.0,0.00016438,2]
[366403796,1750234239987,-490.0,0.00016438,2]
[366403798,1750234239997,-151.0,0.00016438,2]
[366403800,1750234240006,-671.46,0.00016438,2]
[366403802,1750234240015,-490.0,0.00016438,2]
[366403804,1750234240024,-151.58366,0.00016438,2]
[366403806,1750234240033,-490.0,0.00016438,2]
[366403808,1750234240042,-490.0,0.00016438,2]
[366403810,1750234240052,-151.0,0.00016438,2]
[366403813,1750234240071,-503.15652303,0.00016438,2]
[366403815,1750234240081,-490.0,0.00016438,2]
[366403817,1750234240091,-1400.31,0.00016438,2]
[366403818,1750234240101,-490.0,0.00016438,2]
[366403819,1750234240111,-588.29,0.00016438,2]
[366403820,1750234240120,-151.0,0.00016438,2]
[366403821,1750234240130,-490.0,0.00016438,2]
[366403822,1750234240140,-1063.26,0.00016438,2]
[366403823,1750234240149,-495.02861797,0.00016438,2]
[366403824,1750234240158,-675.62,0.00016438,2]
[366403825,1750234240168,-490.0,0.00016438,2]
[366403826,1750234240178,-151.0,0.00016438,2]
[366403827,1750234240187,-490.0,0.00016438,2]
[366403829,1750234240197,-705.74,0.00016438,2]
[366403831,1750234240207,-151.0,0.00016438,2]
[366403833,1750234240216,-151.0,0.00016438,2]
[366403835,1750234240228,-490.0,0.00016438,2]
[366403837,1750234240239,-176.442679,0.00016438,2]
[366403839,1750234240248,-490.0,0.00016438,2]
[366403841,1750234240257,-490.0,0.00016438,2]
[366403843,1750234240268,-490.0,0.00016438,2]
[366403845,1750234240279,-490.0,0.00016438,2]
[366403847,1750234240288,-493.28347778,0.00016438,2]
[366403849,1750234240298,-1561.0,0.00016438,2]
[366403851,1750234240309,-151.0,0.00016438,2]
[366403853,1750234240321,-517.78582032,0.00016438,2]
[366403855,1750234240331,-154.271015,0.00016438,2]
[366403857,1750234240340,-490.0,0.00016438,2]
[366403859,1750234240350,-359.9381307,0.00016438,2]
[366403861,1750234240360,-151.0,0.00016438,2]
[366403863,1750234240370,-490.0,0.00016438,2]
[366403865,1750234240380,-490.0,0.00016438,2]
[366403867,1750234240391,-490.0,0.00016438,2]
[366403869,1750234240401,-490.0,0.00016438,2]
[366403872,1750234240411,-490.0,0.00016438,2]
[366403874,1750234240421,-490.0,0.00016438,2]
[366403876,1750234240432,-490.0,0.00016438,2]
[366403878,1750234240441,-493.66078464,0.00016438,2]
[366403880,1750234240451,-491.65072955,0.00016438,2]
[366403882,1750234240460,-495.84,0.00016438,2]
[366403883,1750234240469,-610.71,0.00016438,2]
[366403885,1750234240478,-697.12,0.00016438,2]
[366403888,1750234240488,-490.0,0.00016438,2]
[366403890,1750234240498,-490.0,0.00016438,2]
[366403891,1750234240508,-417.13208806,0.00016438,2]
[366403893,1750234240517,-490.0,0.00016438,2]
[366403895,1750234240527,-490.0,0.00016438,2]
[366403897,1750234240537,-490.0,0.00016438,2]
[366403899,1750234240547,-490.0,0.00016438,2]
[366403901,1750234240556,-490.0,0.00016438,2]
[366403903,1750234240567,-490.0,0.00016438,2]
[366403905,1750234240578,-490.0,0.00016438,2]
[366403907,1750234240587,-490.0,0.00016438,2]
[366403909,1750234240596,-151.0,0.00016438,2]
[366403911,1750234240606,-490.0,0.00016438,2]
[366403913,1750234240615,-501.13467036,0.00016438,2]
[366403916,1750234240625,-154.45066927,0.00016438,2]
[366403917,1750234240635,-490.0,0.00016438,2]
[366403920,1750234240645,-490.0,0.00016438,2]
[366403922,1750234240654,-490.0,0.00016438,2]
[366403924,1750234240665,-490.0,0.00016438,2]
[366403926,1750234240675,-490.0,0.00016438,2]
[366403928,1750234240685,-151.0,0.00016438,2]
[366403930,1750234240695,-151.0,0.00016438,2]
[366403932,1750234240705,-490.0,0.00016438,2]
[366403934,1750234240714,-543.24,0.00016438,2]
[366403936,1750234240724,-490.0,0.00016438,2]
[366403938,1750234240734,-490.0,0.00016438,2]
[366403940,1750234240744,-490.0,0.00016438,2]
[366403942,1750234240754,-490.0,0.00016438,2]
[366403944,1750234240764,-490.0,0.00016438,2]
[366403946,1750234240774,-490.0,0.00016438,2]
[366403948,1750234240785,-200.0,0.00016438,2]
[366403950,1750234240796,-500.0,0.00016438,2]
[366403952,1750234240806,-490.0,0.00016438,2]
[366403954,1750234240817,-150.0,0.00016438,2]
[366403956,1750234240826,-490.0,0.00016438,2]
[366403958,1750234240836,-201.98796862,0.00016438,2]
[366403960,1750234240846,-500.0,0.00016438,2]
[366403962,1750234240855,-150.0,0.00016438,2]
[366403964,1750234240865,-500.0,0.00016438,2]
[366403966,1750234240875,-491.36996923,0.00016438,2]
[366403968,1750234240885,-150.0,0.00016438,2]
[366403970,1750234240895,-500.0,0.00016438,2]
[366403972,1750234240904,-150.0,0.00016438,2]
[366403974,1750234240914,-150.0,0.00016438,2]
[366403976,1750234240924,-150.0,0.00016438,2]
[366403978,1750234240933,-490.0,0.00016438,2]
[366403980,1750234240942,-500.0,0.00016438,2]
[366403982,1750234240951,-772.05,0.00016438,2]
[366403984,1750234240961,-490.0,0.00016438,2]
[366403986,1750234240971,-500.0,0.00016438,2]
[366403988,1750234240980,-490.0,0.00016438,2]
[366403990,1750234240990,-160.941803,0.00016438,2]
[366403992,1750234241000,-490.0,0.00016438,2]
[366403994,1750234241010,-150.0,0.00016438,2]
[366403996,1750234241020,-509.15,0.00016438,2]
[366403998,1750234241029,-490.0,0.00016438,2]
[366404000,1750234241039,-490.0,0.00016438,2]
[366404002,1750234241049,-490.0,0.00016438,2]
[366404004,1750234241059,-490.0,0.00016438,2]
[366404006,1750234241069,-490.0,0.00016438,2]
[366404008,1750234241079,-1645.86,0.00016438,2]
[366404010,1750234241088,-611.55,0.00016438,2]
[366404012,1750234241098,-1207.78,0.00016438,2]
[366404014,1750234241111,-490.0,0.00016438,2]
[366404016,1750234241126,-1366.7,0.00016438,2]
[366404018,1750234241136,-560.56,0.00016438,2]
[366404020,1750234241148,-490.0,0.00016438,2]
[366404022,1750234241158,-490.0,0.00016438,2]
[366404024,1750234241167,-490.0,0.00016438,2]
[366404026,1750234241177,-490.0,0.00016438,2]
[366404028,1750234241187,-500.38105824,0.00016438,2]
[366404030,1750234241197,-490.0,0.00016438,2]
[366404032,1750234241207,-490.0,0.00016438,2]
[366404034,1750234241216,-651.31,0.00016438,2]
[366404036,1750234241226,-490.0,0.00016438,2]
[366404038,1750234241236,-490.0,0.00016438,2]
[366404040,1750234241246,-490.0,0.00016438,2]
[366404043,1750234241256,-490.0,0.00016438,2]
[366404045,1750234241265,-418.60019253,0.00016438,2]
[366404047,1750234241275,-770.59,0.00016438,2]
[366404049,1750234241284,-150.0,0.00016438,2]
[366404051,1750234241293,-490.0,0.00016438,2]
[366404053,1750234241302,-1225.33,0.00016438,2]
[366404055,1750234241313,-751.86,0.00016438,2]
[366404057,1750234241323,-490.0,0.00016438,2]
[366404059,1750234241336,-490.0,0.00016438,2]
[366404061,1750234241346,-490.0,0.00016438,2]
[366404063,1750234241355,-490.0,0.00016438,2]
[366404065,1750234241365,-490.0,0.00016438,2]
[366404067,1750234241375,-833.95,0.00016438,2]
[366404070,1750234241384,-490.0,0.00016438,2]
[366404072,1750234241393,-490.0,0.00016438,2]
[366404074,1750234241404,-377.86633215,0.00016438,2]
[366404076,1750234241413,-490.0,0.00016438,2]
[366404078,1750234241423,-152.266365,0.00016438,2]
[366404080,1750234241433,-891.22,0.00016438,2]
[366404082,1750234241442,-1396.11,0.00016438,2]
[366404084,1750234241452,-490.0,0.00016438,2]
[366404086,1750234241462,-151.422997,0.00016438,2]
[366404088,1750234241471,-490.0,0.00016438,2]
[366404090,1750234241481,-490.0,0.00016438,2]
[366404092,1750234241490,-737.85,0.00016438,2]
[366404094,1750234241499,-490.0,0.00016438,2]
[366404096,1750234241509,-625.83,0.00016438,2]
[366404098,1750234241519,-490.0,0.00016438,2]
[366404100,1750234241528,-1229.34,0.00016438,2]
[366404102,1750234241538,-887.572348,0.00016438,2]
[366404104,1750234241548,-490.0,0.00016438,2]
[366404106,1750234241558,-690.34,0.00016438,2]
[366404108,1750234241569,-490.0,0.00016438,2]
[366404110,1750234241580,-155.82942,0.00016438,2]
[366404112,1750234241591,-490.0,0.00016438,2]
[366404114,1750234241600,-557.48,0.00016438,2]
[366404116,1750234241610,-388.79803693,0.00016438,2]
[366404118,1750234241619,-1214.92,0.00016438,2]
[366404120,1750234241629,-981.63,0.00016438,2]
[366404122,1750234241639,-492.09097797,0.00016438,2]
[366404124,1750234241648,-490.0,0.00016438,2]
[366404126,1750234241658,-490.0,0.00016438,2]
[366404128,1750234241667,-858.97,0.00016438,2]
[366404130,1750234241676,-1058.51,0.00016438,2]
[366404132,1750234241686,-250.0,0.00016438,2]
[366404134,1750234241695,-492.94593761,0.00016438,2]
[366404136,1750234241706,-490.0,0.00016438,2]
[366404138,1750234241716,-490.0,0.00016438,2]
[366404140,1750234241725,-415.5785691,0.00016438,2]
[366404142,1750234241735,-926.94,0.00016438,2]
[366404144,1750234241745,-490.0,0.00016438,2]
[366404146,1750234241755,-490.0,0.00016438,2]
[366404148,1750234241764,-1317.85,0.00016438,2]
[366404150,1750234241774,-499.72103063,0.00016438,2]
[366404152,1750234241783,-628.43,0.00016438,2]
[366404154,1750234241793,-700.5,0.00016438,2]
[366404156,1750234241802,-390.91119916,0.00016438,2]
[366404158,1750234241812,-490.0,0.00016438,2]
[366404160,1750234241821,-568.89,0.00016438,2]
[366404162,1750234241831,-504.11665116,0.00016438,2]
[366404164,1750234241841,-518.87,0.00016438,2]
[366404166,1750234241850,-490.0,0.00016438,2]
[366404169,1750234241861,-490.0,0.00016438,2]
[366404171,1750234241870,-695.67,0.00016438,2]
[366404173,1750234241880,-490.0,0.00016438,2]
[366404175,1750234241889,-490.0,0.00016438,2]
[366404177,1750234241899,-637.24,0.00016438,2]
[366404179,1750234241908,-744.52,0.00016438,2]
[366404181,1750234241917,-443.78377527,0.00016438,2]
[366404183,1750234241927,-490.0,0.00016438,2]
[366404185,1750234241937,-490.0,0.00016438,2]
[366404187,1750234241946,-1061.43,0.00016438,2]
[366404189,1750234241956,-490.0,0.00016438,2]
[366404191,1750234241966,-490.0,0.00016438,2]
[366404193,1750234241975,-490.0,0.00016438,2]
[366404195,1750234241984,-651.86,0.00016438,2]
[366404197,1750234241994,-490.0,0.00016438,2]
[366404199,1750234242003,-490.0,0.00016438,2]
[366404201,1750234242013,-490.0,0.00016438,2]
[366404203,1750234242023,-1420.47,0.00016438,2]
[366404205,1750234242033,-490.0,0.00016438,2]
[366404207,1750234242042,-490.0,0.00016438,2]
[366404209,1750234242052,-823.21,0.00016438,2]
[366404211,1750234242062,-883.88,0.00016438,2]
[366404213,1750234242072,-1780.9,0.00016438,2]
[366404215,1750234242081,-1014.12,0.00016438,2]
[366404217,1750234242090,-674.15,0.00016438,2]
[366404219,1750234242099,-490.0,0.00016438,2]
[366404221,1750234242109,-1494.81,0.00016438,2]
[366404223,1750234242118,-490.0,0.00016438,2]
[366404225,1750234242128,-646.64,0.00016438,2]
[366404227,1750234242137,-490.0,0.00016438,2]
[366404229,1750234242147,-490.0,0.00016438,2]
[366404232,1750234242156,-490.0,0.00016438,2]
[366404234,1750234242166,-775.89,0.00016438,2]
[366404236,1750234242176,-151.0,0.00016438,2]
[366404238,1750234242185,-490.0,0.00016438,2]
[366404240,1750234242194,-151.605827,0.00016438,2]
[366404242,1750234242205,-490.0,0.00016438,2]
[366404244,1750234242214,-649.84,0.00016438,2]
[366404246,1750234242227,-490.0,0.00016438,2]
[366404248,1750234242236,-547.69539328,0.00016438,2]
[366404250,1750234242245,-490.0,0.00016438,2]
[366404252,1750234242255,-490.0,0.00016438,2]
[366404254,1750234242265,-151.0,0.00016438,2]
[366404256,1750234242275,-555.27,0.00016438,2]
[366404258,1750234242285,-886.28,0.00016438,2]
[366404260,1750234242294,-151.0,0.00016438,2]
[366404262,1750234242304,-1559.25,0.00016438,2]
[366404264,1750234242313,-490.0,0.00016438,2]
[366404266,1750234242323,-490.0,0.00016438,2]
[366404268,1750234242332,-490.0,0.00016438,2]
[366404270,1750234242342,-490.0,0.00016438,2]
[366404272,1750234242351,-206.77960578,0.00016438,2]
[366404274,1750234242360,-496.83,0.00016438,2]
[366404276,1750234242369,-1222.79,0.00016438,2]
[366404278,1750234242378,-495.83810809,0.00016438,2]
[366404280,1750234242388,-543.96,0.00016438,2]
[366404282,1750234242397,-490.0,0.00016438,2]
[366404284,1750234242406,-490.0,0.00016438,2]
[366404286,1750234242416,-1392.99,0.00016438,2]
[366404288,1750234242425,-1462.56,0.00016438,2]
[366404290,1750234242435,-490.0,0.00016438,2]
[366404292,1750234242444,-490.0,0.00016438,2]
[366404294,1750234242453,-743.12,0.00016438,2]
[366404296,1750234242462,-490.0,0.00016438,2]
[366404298,1750234242471,-490.0,0.00016438,2]
[366404300,1750234242481,-490.0,0.00016438,2]
[366404302,1750234242490,-490.0,0.00016438,2]
[366404304,1750234242500,-490.0,0.00016438,2]
[366404306,1750234242509,-993.77,0.00016438,2]
[366404308,1750234242519,-771.96,0.00016438,2]
[366404310,1750234242528,-711.7,0.00016438,2]
[366404312,1750234242538,-300.0,0.00016438,2]
[366404314,1750234242547,-1025.64,0.00016438,2]
[366404316,1750234242556,-490.0,0.00016438,2]
[366404319,1750234242570,-490.0,0.00016438,2]
[366404321,1750234242580,-617.7,0.00016438,2]
[366404323,1750234242589,-1472.8,0.00016438,2]
[366404325,1750234242599,-490.0,0.00016438,2]
[366404327,1750234242610,-633.28,0.00016438,2]
[366404329,1750234242619,-855.01,0.00016438,2]
[366404331,1750234242628,-490.0,0.00016438,2]
[366404333,1750234242638,-1157.2,0.00016438,2]
[366404335,1750234242648,-989.87,0.00016438,2]
[366404337,1750234242658,-538.41,0.00016438,2]
[366404339,1750234242667,-850.49,0.00016438,2]
[366404341,1750234242676,-587.59,0.00016438,2]
[366404343,1750234242685,-2088.36,0.00016438,2]
[366404344,1750234242695,-152.345492,0.00016438,2]
[366404345,1750234242704,-490.0,0.00016438,2]
[366404346,1750234242714,-490.0,0.00016438,2]
[366404347,1750234242723,-896.82,0.00016438,2]
[366404348,1750234242733,-1288.11,0.00016438,2]
[366404349,1750234242742,-490.0,0.00016438,2]
[366404350,1750234242752,-490.0,0.00016438,2]
[366404351,1750234242761,-490.0,0.00016438,2]
[366404352,1750234242771,-151.0,0.00016438,2]
[366404353,1750234242780,-151.0,0.00016438,2]
[366404355,1750234242790,-655.01,0.00016438,2]
[366404356,1750234242799,-1423.46,0.00016438,2]
[366404358,1750234242809,-1357.87,0.00016438,2]
[366404360,1750234242819,-490.0,0.00016438,2]
[366404362,1750234242829,-490.0,0.00016438,2]
[366404364,1750234242839,-490.0,0.00016438,2]
[366404366,1750234242849,-490.0,0.00016438,2]
[366404368,1750234242858,-490.0,0.00016438,2]
[366404370,1750234242867,-1451.71,0.00016438,2]
[366404372,1750234242877,-860.42,0.00016438,2]
[366404374,1750234242886,-498.01,0.00016438,2]
[366404377,1750234242896,-490.0,0.00016438,2]
[366404379,1750234242906,-490.0,0.00016438,2]
[366404381,1750234242916,-490.0,0.00016438,2]
[366404383,1750234242925,-490.0,0.00016438,2]
[366404384,1750234242935,-758.8,0.00016438,2]
[366404388,1750234242944,-1106.44,0.00016438,2]
[366404390,1750234242954,-490.0,0.00016438,2]
[366404392,1750234242964,-832.1,0.00016438,2]
[366404394,1750234242973,-771.47,0.00016438,2]
[366404396,1750234242983,-502.24649946,0.00016438,2]
[366404398,1750234242994,-500.0,0.00016438,2]
[366404400,1750234243003,-490.0,0.00016438,2]
[366404402,1750234243013,-2282.39,0.00016438,2]
[366404404,1750234243022,-490.0,0.00016438,2]
[366404406,1750234243032,-679.42,0.00016438,2]
[366404408,1750234243042,-490.0,0.00016438,2]
[366404410,1750234243051,-490.0,0.00016438,2]
[366404412,1750234243061,-490.0,0.00016438,2]
[366404414,1750234243071,-490.0,0.00016438,2]
[366404416,1750234243080,-490.0,0.00016438,2]
[366404418,1750234243090,-497.46782427,0.00016438,2]
[366404420,1750234243099,-490.0,0.00016438,2]
[366404422,1750234243108,-1760.48,0.00016438,2]
[366404424,1750234243118,-490.0,0.00016438,2]
[366404426,1750234243127,-906.73,0.00016438,2]
[366404428,1750234243137,-490.0,0.00016438,2]
[366404430,1750234243147,-759.2,0.00016438,2]
[366404432,1750234243157,-490.0,0.00016438,2]
[366404435,1750234243167,-490.0,0.00016438,2]
[366404437,1750234243177,-490.0,0.00016438,2]
[366404440,1750234243186,-490.0,0.00016438,2]
[366404442,1750234243196,-151.0,0.00016438,2]
[366404444,1750234243206,-490.0,0.00016438,2]
[366404445,1750234243216,-517.05,0.00016438,2]
[366404446,1750234243226,-490.0,0.00016438,2]
[366404447,1750234243240,-151.0,0.00016438,2]
[366404449,1750234243251,-151.0,0.00016438,2]
[366404450,1750234243260,-490.0,0.00016438,2]
[366404451,1750234243270,-491.1695396,0.00016438,2]
[366404452,1750234243280,-490.0,0.00016438,2]
[366404453,1750234243290,-490.0,0.00016438,2]
[366404455,1750234243300,-490.0,0.00016438,2]
[366404457,1750234243310,-819.78,0.00016438,2]
[366404459,1750234243320,-491.81149996,0.00016438,2]
[366404460,1750234243329,-493.52014018,0.00016438,2]
[366404461,1750234243339,-490.0,0.00016438,2]
[366404462,1750234243349,-491.69747001,0.00016438,2]
[366404463,1750234243359,-490.0,0.00016438,2]
[366404466,1750234243597,-522.72,0.00016438,2]
[366404467,1750234243618,-494.98099185,0.00016438,2]
[366404469,1750234243628,-1368.42,0.00016438,2]
[366404471,1750234243638,-654.66,0.00016438,2]
[366404472,1750234243649,-340.37747265,0.00016438,2]
[366404473,1750234243658,-151.466401,0.00016438,2]
[366404474,1750234243668,-532.75,0.00016438,2]
[366404476,1750234243678,-492.35016128,0.00016438,2]
[366404478,1750234243687,-490.0,0.00016438,2]
[366404480,1750234243697,-490.0,0.00016438,2]
[366404481,1750234243707,-490.0,0.00016438,2]
[366404482,1750234243717,-490.0,0.00016438,2]
[366404483,1750234243727,-490.73754827,0.00016438,2]
[366404484,1750234243737,-490.0,0.00016438,2]
[366404485,1750234243747,-923.72,0.00016438,2]
[366404486,1750234243757,-490.0,0.00016438,2]
[366404487,1750234243768,-490.84069628,0.00016438,2]
[366404488,1750234243778,-490.0,0.00016438,2]
[366404489,1750234243787,-490.0,0.00016438,2]
[366404490,1750234243798,-490.0,0.00016438,2]
[366404491,1750234243807,-1134.71,0.00016438,2]
[366404492,1750234243817,-766.29,0.00016438,2]
[366404493,1750234243827,-607.17,0.00016438,2]
[366404494,1750234243837,-1156.33,0.00016438,2]
[366404495,1750234243847,-496.53421635,0.00016438,2]
[366404496,1750234243858,-490.0,0.00016438,2]
[366404497,1750234243869,-492.89444601,0.00016438,2]